[Event "December 12 Late 2023"]
[Site "https://www.chess.com"]
[Date "2023.12.12"]
[Round "11"]
[White "Assylov, Miras"]
[Black "Garcia Almaguer, Juan Manuel"]
[Result "1-0"]
[Board "43"]
[TimeControl "180+1"]
[WhiteFideId "13728873"]
[BlackFideId "5110491"]
[WhiteElo "2579"]
[BlackElo "2495"]
[WhiteTeam "KAZ"]
[BlackTeam "MEX"]
[WhiteClock "0:00:06"]
[BlackClock "0:00:00"]

1. b3 {[%clk 0:03:00]}  e5 {[%clk 0:02:58]} 2. Bb2 {[%clk 0:03:01]}  Nc6 {[%clk 0:02:59]} 3. e3 {[%clk 0:03:01]}  g6 {[%clk 0:02:59]} 4. Nf3 {[%clk 0:02:51]}  Bg7 {[%clk 0:02:59]} 5. c4 {[%clk 0:02:52]}  Nge7 {[%clk 0:02:58]} 6. b4 {[%clk 0:02:46]}  d6 {[%clk 0:02:46]} 7. b5 {[%clk 0:02:45]}  Nb8 {[%clk 0:02:46]} 8. d4 {[%clk 0:02:43]}  e4 {[%clk 0:02:46]} 9. Nfd2 {[%clk 0:02:43]}  f5 {[%clk 0:02:46]} 10. Be2 {[%clk 0:02:39]}  c5 {[%clk 0:02:46]} 11. bxc6 {[%clk 0:02:36]}  bxc6 {[%clk 0:02:46]} 12. O-O {[%clk 0:02:36]}  O-O {[%clk 0:02:40]} 13. Nc3 {[%clk 0:02:29]}  Nd7 {[%clk 0:02:37]} 14. Qc2 {[%clk 0:02:24]}  Ba6 {[%clk 0:02:34]} 15. Rab1 {[%clk 0:02:21]}  Qc7 {[%clk 0:02:30]} 16. Rfd1 {[%clk 0:02:20]}  Rfb8 {[%clk 0:02:30]} 17. Qa4 {[%clk 0:02:16]}  Qc8 {[%clk 0:02:27]} 18. Ba3 {[%clk 0:02:15]}  c5 {[%clk 0:02:15]} 19. Rxb8 {[%clk 0:02:01]}  Rxb8 {[%clk 0:02:16]} 20. Nb5 {[%clk 0:01:52]}  Nb6 {[%clk 0:01:44]} 21. Qb3 {[%clk 0:01:49]}  cxd4 {[%clk 0:01:28]} 22. exd4 {[%clk 0:01:47]}  Bxb5 {[%clk 0:01:27]} 23. cxb5+ {[%clk 0:01:45]}  Kh8 {[%clk 0:01:23]} 24. Bxd6 {[%clk 0:01:43]}  Rb7 {[%clk 0:01:19]} 25. Nc4 {[%clk 0:01:31]}  Ned5 {[%clk 0:01:10]} 26. Bc5 {[%clk 0:01:25]}  Nf4 {[%clk 0:01:06]} 27. Bf1 {[%clk 0:01:25]}  Nxc4 {[%clk 0:00:46]} 28. Qxc4 {[%clk 0:01:24]}  Rc7 {[%clk 0:00:38]} 29. Qb3 {[%clk 0:01:06]}  Ne6 {[%clk 0:00:38]} 30. Bd6 {[%clk 0:01:00]}  Rc3 {[%clk 0:00:35]} 31. Qa4 {[%clk 0:01:00]}  Qd7 {[%clk 0:00:31]} 32. Bc5 {[%clk 0:00:44]}  e3 {[%clk 0:00:21]} 33. fxe3 {[%clk 0:00:43]}  Nxc5 {[%clk 0:00:21]} 34. dxc5 {[%clk 0:00:42]}  Qe7 {[%clk 0:00:22]} 35. b6 {[%clk 0:00:20]}  axb6 {[%clk 0:00:16]} 36. cxb6 {[%clk 0:00:21]}  Be5 {[%clk 0:00:09]} 37. Qa8+ {[%clk 0:00:16]}  Kg7 {[%clk 0:00:08]} 38. Qd5 {[%clk 0:00:09]}  Qf6 {[%clk 0:00:05]} 39. b7 {[%clk 0:00:08]}  Kh6 {[%clk 0:00:00]} 40. Qd8 {[%clk 0:00:06]} 1-0

[Event "December 12 Late 2023"]
[Site "https://www.chess.com"]
[Date "2023.12.12"]
[Round "11"]
[White "Herman, Matthew"]
[Black "Sanchez Enriquez, Oscar Gerardo"]
[Result "1/2-1/2"]
[Board "44"]
[TimeControl "180+1"]
[WhiteFideId "2028964"]
[BlackFideId "5106311"]
[WhiteElo "2497"]
[BlackElo "2543"]
[WhiteTeam "USA"]
[BlackTeam "MEX"]
[WhiteClock "0:00:08"]
[BlackClock "0:00:19"]

1. e4 {[%clk 0:03:00]}  d6 {[%clk 0:02:57]} 2. d4 {[%clk 0:03:01]}  Nf6 {[%clk 0:02:58]} 3. Nc3 {[%clk 0:03:01]}  g6 {[%clk 0:02:58]} 4. Nf3 {[%clk 0:03:00]}  Bg7 {[%clk 0:02:58]} 5. Be3 {[%clk 0:02:58]}  O-O {[%clk 0:02:58]} 6. h3 {[%clk 0:02:54]}  c6 {[%clk 0:02:57]} 7. Qd2 {[%clk 0:02:48]}  Qa5 {[%clk 0:02:57]} 8. Bd3 {[%clk 0:02:41]}  e5 {[%clk 0:02:57]} 9. O-O {[%clk 0:02:26]}  Nbd7 {[%clk 0:02:55]} 10. a3 {[%clk 0:02:16]}  Re8 {[%clk 0:02:55]} 11. b4 {[%clk 0:01:35]}  Qc7 {[%clk 0:02:55]} 12. Bh6 {[%clk 0:01:29]}  Nh5 {[%clk 0:02:53]} 13. Ne2 {[%clk 0:01:20]}  a5 {[%clk 0:02:49]} 14. c3 {[%clk 0:01:08]}  b5 {[%clk 0:02:47]} 15. g4 {[%clk 0:01:00]}  Nhf6 {[%clk 0:02:43]} 16. Ng3 {[%clk 0:01:00]}  Nb6 {[%clk 0:02:27]} 17. Kh1 {[%clk 0:00:33]}  Qe7 {[%clk 0:01:59]} 18. Rg1 {[%clk 0:00:27]}  Nc4 {[%clk 0:01:30]} 19. Bxc4 {[%clk 0:00:26]}  bxc4 {[%clk 0:01:31]} 20. dxe5 {[%clk 0:00:18]}  dxe5 {[%clk 0:01:31]} 21. Bxg7 {[%clk 0:00:12]}  Kxg7 {[%clk 0:01:31]} 22. Qe3 {[%clk 0:00:13]}  axb4 {[%clk 0:01:18]} 23. axb4 {[%clk 0:00:13]}  Rxa1 {[%clk 0:01:18]} 24. Rxa1 {[%clk 0:00:14]}  Qd6 {[%clk 0:01:09]} 25. Ra7 {[%clk 0:00:12]}  Re7 {[%clk 0:01:07]} 26. Rxe7 {[%clk 0:00:12]}  Qxe7 {[%clk 0:01:08]} 27. Nd2 {[%clk 0:00:10]}  Be6 {[%clk 0:01:07]} 28. Kg2 {[%clk 0:00:09]}  Nd7 {[%clk 0:01:06]} 29. Ne2 {[%clk 0:00:06]}  Qd6 {[%clk 0:01:01]} 30. Ng1 {[%clk 0:00:06]}  c5 {[%clk 0:00:59]} 31. b5 {[%clk 0:00:05]}  Qb6 {[%clk 0:00:58]} 32. f4 {[%clk 0:00:03]}  exf4 {[%clk 0:00:55]} 33. Qxf4 {[%clk 0:00:04]}  Qxb5 {[%clk 0:00:55]} 34. Ngf3 {[%clk 0:00:05]}  Qb2 {[%clk 0:00:55]} 35. Qe3 {[%clk 0:00:05]}  Qc2 {[%clk 0:00:51]} 36. Kf2 {[%clk 0:00:05]}  Nf6 {[%clk 0:00:46]} 37. Ke2 {[%clk 0:00:02]}  Nd7 {[%clk 0:00:45]} 38. Kf2 {[%clk 0:00:01]}  h6 {[%clk 0:00:43]} 39. Ke2 {[%clk 0:00:01]}  Nf6 {[%clk 0:00:39]} 40. Kf2 {[%clk 0:00:01]}  h5 {[%clk 0:00:34]} 41. g5 {[%clk 0:00:01]}  Nd7 {[%clk 0:00:34]} 42. h4 {[%clk 0:00:02]}  Bg4 {[%clk 0:00:32]} 43. Qf4 {[%clk 0:00:01]}  Bxf3 {[%clk 0:00:28]} 44. Kxf3 {[%clk 0:00:01]}  Qd3+ {[%clk 0:00:28]} 45. Kf2 {[%clk 0:00:01]}  Qxc3 {[%clk 0:00:23]} 46. Nf3 {[%clk 0:00:02]}  Qb2+ {[%clk 0:00:20]} 47. Kg3 {[%clk 0:00:02]}  Qb6 {[%clk 0:00:20]} 48. e5 {[%clk 0:00:03]}  Qe6 {[%clk 0:00:20]} 49. Qe4 {[%clk 0:00:03]}  Qg4+ {[%clk 0:00:17]} 50. Qxg4 {[%clk 0:00:03]}  hxg4 {[%clk 0:00:18]} 51. Kxg4 {[%clk 0:00:04]}  c3 {[%clk 0:00:18]} 52. Ne1 {[%clk 0:00:04]}  Nxe5+ {[%clk 0:00:18]} 53. Kf4 {[%clk 0:00:05]}  Nc4 {[%clk 0:00:18]} 54. Ke4 {[%clk 0:00:05]}  Nd6+ {[%clk 0:00:18]} 55. Kd5 {[%clk 0:00:05]}  Nf5 {[%clk 0:00:19]} 56. Kxc5 {[%clk 0:00:05]}  Nxh4 {[%clk 0:00:20]} 57. Kc4 {[%clk 0:00:05]}  Nf5 {[%clk 0:00:18]} 58. Kxc3 {[%clk 0:00:05]}  f6 {[%clk 0:00:19]} 59. gxf6+ {[%clk 0:00:06]}  Kxf6 {[%clk 0:00:20]} 60. Kd3 {[%clk 0:00:06]}  Ke5 {[%clk 0:00:20]} 61. Ke2 {[%clk 0:00:07]}  Kf4 {[%clk 0:00:21]} 62. Kf2 {[%clk 0:00:07]}  Nh4 {[%clk 0:00:19]} 63. Nd3+ {[%clk 0:00:08]}  Kg4 {[%clk 0:00:19]} 64. Ne5+ {[%clk 0:00:07]}  Kf5 {[%clk 0:00:19]} 65. Nxg6 {[%clk 0:00:08]} 1/2-1/2

[Event "December 12 Late 2023"]
[Site "https://www.chess.com"]
[Date "2023.12.12"]
[Round "11"]
[White "Cervantes Landeiro, Thalia"]
[Black "Bardyk, Artem"]
[Result "0-1"]
[Board "45"]
[TimeControl "180+1"]
[WhiteFideId "3520498"]
[BlackFideId "34349979"]
[WhiteElo "2497"]
[BlackElo "2693"]
[WhiteTeam "USA"]
[BlackTeam "RUS"]
[WhiteClock "0:00:06"]
[BlackClock "0:00:26"]

1. d4 {[%clk 0:02:56]}  d5 {[%clk 0:02:59]} 2. c4 {[%clk 0:02:56]}  e6 {[%clk 0:03:00]} 3. Nc3 {[%clk 0:02:56]}  c5 {[%clk 0:03:00]} 4. cxd5 {[%clk 0:02:57]}  cxd4 {[%clk 0:03:01]} 5. Nf3 {[%clk 0:02:58]}  dxc3 {[%clk 0:03:01]} 6. bxc3 {[%clk 0:02:58]}  Qxd5 {[%clk 0:03:01]} 7. Qc2 {[%clk 0:02:57]}  Nf6 {[%clk 0:02:59]} 8. e3 {[%clk 0:02:55]}  Nc6 {[%clk 0:02:58]} 9. Bd3 {[%clk 0:02:49]}  e5 {[%clk 0:02:58]} 10. e4 {[%clk 0:02:43]}  Qa5 {[%clk 0:02:56]} 11. O-O {[%clk 0:02:43]}  Be7 {[%clk 0:02:55]} 12. Bd2 {[%clk 0:02:33]}  O-O {[%clk 0:02:41]} 13. c4 {[%clk 0:02:30]}  Qc7 {[%clk 0:02:41]} 14. Bc3 {[%clk 0:02:30]}  Bg4 {[%clk 0:02:41]} 15. Nd2 {[%clk 0:02:18]}  Rfd8 {[%clk 0:02:39]} 16. h3 {[%clk 0:02:12]}  Be6 {[%clk 0:02:38]} 17. Nf3 {[%clk 0:02:08]}  Nd7 {[%clk 0:02:36]} 18. Be2 {[%clk 0:02:02]}  Nc5 {[%clk 0:02:29]} 19. Rad1 {[%clk 0:01:47]}  Rxd1 {[%clk 0:02:22]} 20. Rxd1 {[%clk 0:01:48]}  Rd8 {[%clk 0:02:23]} 21. Rxd8+ {[%clk 0:01:34]}  Qxd8 {[%clk 0:02:24]} 22. Nxe5 {[%clk 0:01:33]}  Nd4 {[%clk 0:02:19]} 23. Qd2 {[%clk 0:01:24]}  Nxe2+ {[%clk 0:02:08]} 24. Qxe2 {[%clk 0:01:25]}  f6 {[%clk 0:02:04]} 25. Nf3 {[%clk 0:01:25]}  Qd3 {[%clk 0:02:03]} 26. Qb2 {[%clk 0:01:18]}  Na4 {[%clk 0:01:57]} 27. Qxb7 {[%clk 0:01:18]}  Qd7 {[%clk 0:01:24]} 28. Qxd7 {[%clk 0:01:07]}  Bxd7 {[%clk 0:01:25]} 29. Bd4 {[%clk 0:01:03]}  Bc5 {[%clk 0:01:17]} 30. Bxc5 {[%clk 0:00:55]}  Nxc5 {[%clk 0:01:18]} 31. Nd2 {[%clk 0:00:55]}  Kf7 {[%clk 0:01:05]} 32. f3 {[%clk 0:00:55]}  Ke6 {[%clk 0:01:06]} 33. Kf2 {[%clk 0:00:55]}  Kd6 {[%clk 0:01:05]} 34. Ke3 {[%clk 0:00:55]}  Kc6 {[%clk 0:01:05]} 35. Kd4 {[%clk 0:00:54]}  Ne6+ {[%clk 0:01:05]} 36. Ke3 {[%clk 0:00:35]}  Kc5 {[%clk 0:00:58]} 37. f4 {[%clk 0:00:35]}  Kb4 {[%clk 0:00:51]} 38. e5 {[%clk 0:00:32]}  fxe5 {[%clk 0:00:47]} 39. fxe5 {[%clk 0:00:33]}  Ka3 {[%clk 0:00:47]} 40. Ke4 {[%clk 0:00:33]}  Kxa2 {[%clk 0:00:40]} 41. Kd5 {[%clk 0:00:33]}  a5 {[%clk 0:00:36]} 42. c5 {[%clk 0:00:26]}  a4 {[%clk 0:00:36]} 43. c6 {[%clk 0:00:24]}  Bc8 {[%clk 0:00:36]} 44. Nc4 {[%clk 0:00:08]}  a3 {[%clk 0:00:30]} 45. Kd6 {[%clk 0:00:02]}  Kb3 {[%clk 0:00:28]} 46. Nxa3 {[%clk 0:00:01]}  Kxa3 {[%clk 0:00:29]} 47. g4 {[%clk 0:00:01]}  Kb4 {[%clk 0:00:29]} 48. c7 {[%clk 0:00:01]}  Kb5 {[%clk 0:00:29]} 49. h4 {[%clk 0:00:02]}  Kb6 {[%clk 0:00:28]} 50. g5 {[%clk 0:00:03]}  Nxc7 {[%clk 0:00:28]} 51. Ke7 {[%clk 0:00:03]}  g6 {[%clk 0:00:27]} 52. Kf6 {[%clk 0:00:03]}  Bg4 {[%clk 0:00:28]} 53. Kg7 {[%clk 0:00:04]}  Bh5 {[%clk 0:00:28]} 54. Kxh7 {[%clk 0:00:05]}  Kc6 {[%clk 0:00:29]} 55. Kg7 {[%clk 0:00:05]}  Kd5 {[%clk 0:00:29]} 56. Kf6 {[%clk 0:00:05]}  Ne6 {[%clk 0:00:29]} 57. Kf7 {[%clk 0:00:03]}  Kxe5 {[%clk 0:00:30]} 58. Kg8 {[%clk 0:00:02]}  Nxg5 {[%clk 0:00:30]} 59. hxg5 {[%clk 0:00:02]}  Kf5 {[%clk 0:00:31]} 60. Kh7 {[%clk 0:00:02]}  Kxg5 {[%clk 0:00:32]} 61. Kg7 {[%clk 0:00:03]}  Kh4 {[%clk 0:00:32]} 62. Kf6 {[%clk 0:00:03]}  g5 {[%clk 0:00:33]} 63. Ke5 {[%clk 0:00:04]}  g4 {[%clk 0:00:34]} 64. Kf4 {[%clk 0:00:05]}  g3 {[%clk 0:00:35]} 65. Ke3 {[%clk 0:00:05]}  Kh3 {[%clk 0:00:27]} 66. Kf4 {[%clk 0:00:04]}  g2 {[%clk 0:00:26]} 67. Kg5 {[%clk 0:00:05]}  g1=Q+ {[%clk 0:00:26]} 68. Kh6 {[%clk 0:00:06]}  Qg6# {[%clk 0:00:26]} 0-1

[Event "December 12 Late 2023"]
[Site "https://www.chess.com"]
[Date "2023.12.12"]
[Round "11"]
[White "Arnold, Ken"]
[Black "Golubev, Mikhail"]
[Result "0-1"]
[Board "48"]
[TimeControl "180+1"]
[WhiteFideId "2056836"]
[BlackFideId "14100983"]
[WhiteElo "2458"]
[BlackElo "2605"]
[WhiteTeam "USA"]
[BlackTeam "UKR"]
[WhiteClock "0:00:04"]
[BlackClock "0:00:04"]

1. d4 {[%clk 0:03:00]}  Nf6 {[%clk 0:02:59]} 2. Nf3 {[%clk 0:03:00]}  d6 {[%clk 0:02:59]} 3. Bf4 {[%clk 0:03:01]}  Nbd7 {[%clk 0:02:59]} 4. c3 {[%clk 0:03:01]}  g6 {[%clk 0:02:54]} 5. e3 {[%clk 0:03:01]}  Bg7 {[%clk 0:02:55]} 6. Nbd2 {[%clk 0:03:01]}  O-O {[%clk 0:02:55]} 7. Be2 {[%clk 0:03:01]}  b6 {[%clk 0:02:55]} 8. O-O {[%clk 0:03:01]}  Bb7 {[%clk 0:02:55]} 9. h3 {[%clk 0:03:01]}  Re8 {[%clk 0:02:54]} 10. Bh2 {[%clk 0:03:01]}  e5 {[%clk 0:02:54]} 11. dxe5 {[%clk 0:03:01]}  dxe5 {[%clk 0:02:51]} 12. Nc4 {[%clk 0:03:01]}  e4 {[%clk 0:02:47]} 13. Nd4 {[%clk 0:02:57]}  Nc5 {[%clk 0:02:45]} 14. Nb5 {[%clk 0:02:38]}  c6 {[%clk 0:02:00]} 15. Nc7 {[%clk 0:02:25]}  Nd3 {[%clk 0:01:53]} 16. Nd6 {[%clk 0:02:13]}  Qxc7 {[%clk 0:01:37]} 17. Nxe8 {[%clk 0:02:12]}  Qd7 {[%clk 0:01:36]} 18. Nxf6+ {[%clk 0:02:12]}  Bxf6 {[%clk 0:01:35]} 19. Qc2 {[%clk 0:02:08]}  Rd8 {[%clk 0:01:33]} 20. Rad1 {[%clk 0:02:07]}  Ba6 {[%clk 0:01:33]} 21. c4 {[%clk 0:01:59]}  c5 {[%clk 0:01:26]} 22. b3 {[%clk 0:01:56]}  Bb7 {[%clk 0:01:24]} 23. Rd2 {[%clk 0:01:53]}  Qf5 {[%clk 0:01:21]} 24. Bg4 {[%clk 0:01:49]}  Qg5 {[%clk 0:01:17]} 25. Bf4 {[%clk 0:01:43]}  Nxf4 {[%clk 0:01:13]} 26. Rxd8+ {[%clk 0:01:41]}  Bxd8 {[%clk 0:01:14]} 27. exf4 {[%clk 0:01:37]}  Qxf4 {[%clk 0:01:14]} 28. Rd1 {[%clk 0:01:32]}  Bc7 {[%clk 0:01:12]} 29. g3 {[%clk 0:01:27]}  Qe5 {[%clk 0:01:12]} 30. Qd2 {[%clk 0:01:23]}  f5 {[%clk 0:01:06]} 31. Be2 {[%clk 0:01:21]}  Bc6 {[%clk 0:01:05]} 32. Qg5 {[%clk 0:01:15]}  Kg7 {[%clk 0:01:00]} 33. h4 {[%clk 0:01:07]}  h6 {[%clk 0:01:00]} 34. Qc1 {[%clk 0:00:58]}  Qf6 {[%clk 0:00:58]} 35. a3 {[%clk 0:00:37]}  f4 {[%clk 0:00:57]} 36. gxf4 {[%clk 0:00:10]}  Bxf4 {[%clk 0:00:53]} 37. Qc2 {[%clk 0:00:10]}  Be5 {[%clk 0:00:42]} 38. Bf1 {[%clk 0:00:05]}  Qxh4 {[%clk 0:00:18]} 39. Bg2 {[%clk 0:00:05]}  Qf4 {[%clk 0:00:17]} 40. Re1 {[%clk 0:00:03]}  Bd4 {[%clk 0:00:10]} 41. Bxe4 {[%clk 0:00:03]}  Qg3+ {[%clk 0:00:10]} 42. Kf1 {[%clk 0:00:02]}  Qh3+ {[%clk 0:00:10]} 43. Ke2 {[%clk 0:00:02]}  Qg4+ {[%clk 0:00:09]} 44. f3 {[%clk 0:00:02]}  Qe6 {[%clk 0:00:06]} 45. Kd1 {[%clk 0:00:02]}  Qd6 {[%clk 0:00:06]} 46. Qd3 {[%clk 0:00:02]}  Be8 {[%clk 0:00:06]} 47. Re2 {[%clk 0:00:02]}  g5 {[%clk 0:00:05]} 48. Kc2 {[%clk 0:00:02]}  Bf7 {[%clk 0:00:05]} 49. Bd5 {[%clk 0:00:02]}  Bg6 {[%clk 0:00:05]} 50. Be4 {[%clk 0:00:02]}  Bh5 {[%clk 0:00:05]} 51. b4 {[%clk 0:00:03]}  a5 {[%clk 0:00:04]} 52. bxc5 {[%clk 0:00:03]}  bxc5 {[%clk 0:00:04]} 53. Qb3 {[%clk 0:00:03]}  Be8 {[%clk 0:00:04]} 54. Qb7+ {[%clk 0:00:03]}  Bd7 {[%clk 0:00:04]} 55. Qd5 {[%clk 0:00:04]}  Qxd5 {[%clk 0:00:04]} 56. Bxd5 {[%clk 0:00:04]}  Kf6 {[%clk 0:00:04]} 57. Be4 {[%clk 0:00:04]}  h5 {[%clk 0:00:04]} 58. Kd3 {[%clk 0:00:04]}  h4 {[%clk 0:00:04]} 59. Rb2 {[%clk 0:00:04]}  h3 {[%clk 0:00:04]} 60. Rh2 {[%clk 0:00:03]}  Be5 {[%clk 0:00:03]} 61. Rh1 {[%clk 0:00:02]}  h2 {[%clk 0:00:03]} 62. Ke3 {[%clk 0:00:03]}  Bf4+ {[%clk 0:00:03]} 63. Kf2 {[%clk 0:00:03]}  Be6 {[%clk 0:00:03]} 64. Bd5 {[%clk 0:00:03]}  Bxd5 {[%clk 0:00:03]} 65. cxd5 {[%clk 0:00:04]}  Ke5 {[%clk 0:00:04]} 66. Ke2 {[%clk 0:00:03]}  Kxd5 {[%clk 0:00:04]} 67. Kd3 {[%clk 0:00:04]}  c4+ {[%clk 0:00:04]} 68. Kc3 {[%clk 0:00:04]}  Kc5 {[%clk 0:00:04]} 69. a4 {[%clk 0:00:04]}  Be5+ {[%clk 0:00:04]} 70. Kc2 {[%clk 0:00:04]}  Kb4 {[%clk 0:00:04]} 71. Kd2 {[%clk 0:00:04]}  Kxa4 {[%clk 0:00:04]} 72. Ke3 {[%clk 0:00:05]}  Kb3 {[%clk 0:00:04]} 73. Ke4 {[%clk 0:00:04]}  Bf4 {[%clk 0:00:04]} 0-1

[Event "December 12 Late 2023"]
[Site "https://www.chess.com"]
[Date "2023.12.12"]
[Round "11"]
[White "Osmak, Yuliia"]
[Black "Serra Canals, Oriol"]
[Result "0-1"]
[Board "51"]
[TimeControl "180+1"]
[WhiteFideId "14101602"]
[BlackFideId "22276084"]
[WhiteElo "2543"]
[BlackElo "2455"]
[WhiteTeam "UKR"]
[BlackTeam "ESP"]
[WhiteClock "0:00:00"]
[BlackClock "0:00:03"]

1. g3 {[%clk 0:03:00]}  e6 {[%clk 0:02:59]} 2. Bg2 {[%clk 0:03:00]}  Nf6 {[%clk 0:03:00]} 3. e4 {[%clk 0:02:59]}  d5 {[%clk 0:02:58]} 4. d3 {[%clk 0:02:58]}  dxe4 {[%clk 0:02:57]} 5. dxe4 {[%clk 0:02:59]}  Qxd1+ {[%clk 0:02:56]} 6. Kxd1 {[%clk 0:03:00]}  Bc5 {[%clk 0:02:53]} 7. Ke2 {[%clk 0:02:58]}  a5 {[%clk 0:02:49]} 8. Be3 {[%clk 0:02:52]}  Bxe3 {[%clk 0:02:47]} 9. Kxe3 {[%clk 0:02:53]}  Nc6 {[%clk 0:02:47]} 10. c3 {[%clk 0:02:49]}  b6 {[%clk 0:02:41]} 11. Na3 {[%clk 0:02:39]}  Ba6 {[%clk 0:02:40]} 12. f4 {[%clk 0:02:34]}  O-O-O {[%clk 0:02:33]} 13. Bf1 {[%clk 0:02:29]}  Bb7 {[%clk 0:02:08]} 14. Bg2 {[%clk 0:02:02]}  Ng4+ {[%clk 0:02:05]} 15. Kf3 {[%clk 0:02:01]}  f5 {[%clk 0:02:05]} 16. Nh3 {[%clk 0:01:50]}  Rd3+ {[%clk 0:01:52]} 17. Ke2 {[%clk 0:01:48]}  Re3+ {[%clk 0:01:45]} 18. Kf1 {[%clk 0:01:40]}  fxe4 {[%clk 0:01:28]} 19. Nc2 {[%clk 0:01:32]}  Ba6+ {[%clk 0:01:24]} 20. Kg1 {[%clk 0:01:31]}  Re2 {[%clk 0:01:25]} 21. Nd4 {[%clk 0:01:23]}  Nxd4 {[%clk 0:01:19]} 22. cxd4 {[%clk 0:01:24]}  Rd8 {[%clk 0:01:08]} 23. Bf1 {[%clk 0:01:22]}  Rxd4 {[%clk 0:00:58]} 24. Bxe2 {[%clk 0:01:22]}  Bxe2 {[%clk 0:00:59]} 25. Nf2 {[%clk 0:01:18]}  Rd2 {[%clk 0:00:50]} 26. Nxg4 {[%clk 0:01:02]}  Bxg4 {[%clk 0:00:51]} 27. h3 {[%clk 0:00:54]}  Bf3 {[%clk 0:00:50]} 28. Rh2 {[%clk 0:00:55]}  e3 {[%clk 0:00:51]} 29. Rf1 {[%clk 0:00:48]}  e2 {[%clk 0:00:35]} 30. Re1 {[%clk 0:00:45]}  Rxb2 {[%clk 0:00:35]} 31. Rf2 {[%clk 0:00:35]}  Bd5 {[%clk 0:00:32]} 32. Rfxe2 {[%clk 0:00:34]}  Rxa2 {[%clk 0:00:33]} 33. Rxa2 {[%clk 0:00:33]}  Bxa2 {[%clk 0:00:34]} 34. Kf2 {[%clk 0:00:24]}  a4 {[%clk 0:00:34]} 35. Ke3 {[%clk 0:00:23]}  c5 {[%clk 0:00:27]} 36. Kd3 {[%clk 0:00:17]}  Bd5 {[%clk 0:00:25]} 37. Kc3 {[%clk 0:00:13]}  a3 {[%clk 0:00:24]} 38. f5 {[%clk 0:00:09]}  exf5 {[%clk 0:00:20]} 39. Re5 {[%clk 0:00:09]}  Be4 {[%clk 0:00:17]} 40. Kb3 {[%clk 0:00:09]}  a2 {[%clk 0:00:12]} 41. Kxa2 {[%clk 0:00:08]}  Kc7 {[%clk 0:00:13]} 42. Re7+ {[%clk 0:00:08]}  Kd6 {[%clk 0:00:13]} 43. Rxg7 {[%clk 0:00:09]}  h5 {[%clk 0:00:09]} 44. Rg5 {[%clk 0:00:07]}  b5 {[%clk 0:00:06]} 45. Rxh5 {[%clk 0:00:07]}  b4 {[%clk 0:00:06]} 46. Rh8 {[%clk 0:00:07]}  c4 {[%clk 0:00:05]} 47. Rb8 {[%clk 0:00:06]}  Kc5 {[%clk 0:00:03]} 48. h4 {[%clk 0:00:05]}  c3 {[%clk 0:00:02]} 49. h5 {[%clk 0:00:04]}  Bd5+ {[%clk 0:00:02]} 50. Kb1 {[%clk 0:00:04]}  Kc4 {[%clk 0:00:03]} 51. h6 {[%clk 0:00:04]}  b3 {[%clk 0:00:03]} 52. h7 {[%clk 0:00:00]}  b2 {[%clk 0:00:03]} 0-1

[Event "December 12 Late 2023"]
[Site "https://www.chess.com"]
[Date "2023.12.12"]
[Round "11"]
[White "Rama, Tejas"]
[Black "Rangel, Daniel"]
[Result "1-0"]
[Board "54"]
[TimeControl "180+1"]
[WhiteFideId "30907381"]
[BlackFideId "2124475"]
[WhiteElo "2529"]
[BlackElo "2494"]
[WhiteTeam "USA"]
[BlackTeam "BRA"]
[WhiteClock "0:01:05"]
[BlackClock "0:00:09"]

1. d4 {[%clk 0:03:00]}  Nf6 {[%clk 0:02:59]} 2. c4 {[%clk 0:03:01]}  e6 {[%clk 0:02:59]} 3. Nf3 {[%clk 0:03:00]}  d5 {[%clk 0:03:00]} 4. Nc3 {[%clk 0:03:00]}  Be7 {[%clk 0:03:00]} 5. Bf4 {[%clk 0:02:57]}  O-O {[%clk 0:03:00]} 6. e3 {[%clk 0:02:55]}  a6 {[%clk 0:02:59]} 7. c5 {[%clk 0:02:47]}  Ne4 {[%clk 0:02:57]} 8. Nxe4 {[%clk 0:02:43]}  dxe4 {[%clk 0:02:58]} 9. Nd2 {[%clk 0:02:39]}  f5 {[%clk 0:02:57]} 10. Bc4 {[%clk 0:02:32]}  Kh8 {[%clk 0:02:57]} 11. h4 {[%clk 0:02:26]}  Nc6 {[%clk 0:02:54]} 12. Qb3 {[%clk 0:02:13]}  Na5 {[%clk 0:02:50]} 13. Qc3 {[%clk 0:02:13]}  Nxc4 {[%clk 0:02:50]} 14. Nxc4 {[%clk 0:02:14]}  Bd7 {[%clk 0:02:39]} 15. h5 {[%clk 0:02:09]}  Bb5 {[%clk 0:02:26]} 16. Ne5 {[%clk 0:01:43]}  Qd5 {[%clk 0:02:19]} 17. Qc2 {[%clk 0:01:22]}  a5 {[%clk 0:01:45]} 18. Ng6+ {[%clk 0:01:15]}  hxg6 {[%clk 0:01:42]} 19. hxg6+ {[%clk 0:01:15]}  Kg8 {[%clk 0:01:42]} 20. Rh8+ {[%clk 0:01:07]}  Kxh8 {[%clk 0:01:37]} 21. Qd1 {[%clk 0:01:08]}  Kg8 {[%clk 0:00:09]} 22. Qh5 {[%clk 0:01:05]} 1-0

[Event "December 12 Late 2023"]
[Site "https://www.chess.com"]
[Date "2023.12.12"]
[Round "11"]
[White "Rees, Ioan"]
[Black "Storn, Justin"]
[Result "0-1"]
[Board "55"]
[TimeControl "180+1"]
[WhiteFideId "1801236"]
[BlackFideId "30922720"]
[WhiteElo "2525"]
[BlackElo "2381"]
[WhiteTeam "WLS"]
[BlackTeam "USA"]
[WhiteClock "0:01:38"]
[BlackClock "0:01:42"]

1. e4 {[%clk 0:02:57]}  Nc6 {[%clk 0:02:59]} 2. Nf3 {[%clk 0:02:56]}  d5 {[%clk 0:03:00]} 3. exd5 {[%clk 0:02:51]}  Qxd5 {[%clk 0:02:51]} 4. Nc3 {[%clk 0:02:51]}  Qh5 {[%clk 0:02:46]} 5. Be2 {[%clk 0:02:46]}  Bg4 {[%clk 0:02:45]} 6. d4 {[%clk 0:02:43]}  O-O-O {[%clk 0:02:45]} 7. Be3 {[%clk 0:02:43]}  Nf6 {[%clk 0:02:42]} 8. h3 {[%clk 0:02:43]}  e5 {[%clk 0:02:41]} 9. O-O {[%clk 0:02:38]}  exd4 {[%clk 0:02:25]} 10. hxg4 {[%clk 0:02:35]}  Nxg4 {[%clk 0:02:24]} 11. Bf4 {[%clk 0:02:18]}  dxc3 {[%clk 0:02:23]} 12. Qc1 {[%clk 0:02:17]}  cxb2 {[%clk 0:01:56]} 13. Qxb2 {[%clk 0:02:18]}  Bd6 {[%clk 0:01:56]} 14. Bg3 {[%clk 0:01:50]}  Bxg3 {[%clk 0:01:50]} 15. fxg3 {[%clk 0:01:51]}  Nd4 {[%clk 0:01:42]} 16. Rfb1 {[%clk 0:01:38]} 0-1